[Event "European Rapid Championship 2021"]
[Site "Katowice"]
[Date "2021.12.18"]
[Round "6.27"]
[White "Mackowiak, Szymon"]
[Black "Zylka, Stanislaw"]
[Result "1/2-1/2"]
[ECO "D85"]
[WhiteElo "1665"]
[BlackElo "2367"]
[Annotator "ChessBase"]
[PlyCount "245"]
[EventDate "2021.12.18"]
[EventType "swiss"]
[EventCountry "POL"]
[SourceTitle "playchess.com"]
[Source "ChessBase"]
[SourceQuality "1"]
[TimeControl "900+10"]

1. d4 {[%emt 0:00:01]} Nf6 {[%emt 0:00:02]} 2. c4 {[%emt 0:00:03]} g6 {[%emt 0:
00:03]} 3. Nc3 {[%emt 0:00:03]} d5 {[%emt 0:00:01]} 4. cxd5 {[%emt 0:00:03]}
Nxd5 {[%emt 0:00:02]} 5. Bd2 {[%emt 0:00:02]} Bg7 {[%emt 0:00:02]} 6. e4 {
[%emt 0:00:02]} Nxc3 {[%emt 0:00:02]} 7. Bxc3 {[%emt 0:00:01]} c5 {[%emt 0:00:
09]} 8. d5 {[%emt 0:00:01]} Bxc3+ {[%emt 0:00:17]} 9. bxc3 {[%emt 0:00:02]} O-O
{[%emt 0:00:07]} 10. Nf3 {[%emt 0:00:02]} e6 {[%emt 0:01:29]} 11. Be2 {[%emt 0:
00:02]} exd5 {[%emt 0:00:18]} 12. exd5 {[%emt 0:00:02]} Qd6 {[%emt 0:00:29]}
13. O-O {[%emt 0:00:41]} Nd7 {[%emt 0:00:05]} 14. a4 {[%emt 0:00:47]} Nf6 {
[%emt 0:00:20]} 15. c4 {[%emt 0:00:16]} Bd7 {[%emt 0:01:19]} 16. Qc2 {[%emt 0:
00:34]} Rfe8 {[%emt 0:00:13]} 17. Bd3 {[%emt 0:00:09]} Bg4 {[%emt 0:00:56]} 18.
Nd2 {[%emt 0:00:07]} Qe5 {[%emt 0:00:09]} 19. Rab1 {[%emt 0:00:51]} b6 {
[%emt 0:00:02]} 20. Qb2 {[%emt 0:00:07]} Qxb2 {[%emt 0:01:14]} 21. Rxb2 {
[%emt 0:00:02]} Be2 {[%emt 0:00:01]} 22. Bxe2 {[%emt 0:00:09]} Rxe2 {[%emt 0:
00:03]} 23. Rfb1 {[%emt 0:00:44]} Rae8 {[%emt 0:00:14]} 24. f3 {[%emt 0:02:55]}
Kf8 {[%emt 0:00:16]} 25. Kf1 {[%emt 0:00:11]} h5 {[%emt 0:00:17]} 26. h4 {
[%emt 0:01:33]} R2e3 {[%emt 0:00:34]} 27. Rb3 {[%emt 0:00:12]} Rxb3 {[%emt 0:
06:36]} 28. Rxb3 {[%emt 0:00:01]} Rb8 {[%emt 0:00:11]} 29. Kf2 {[%emt 0:00:20]}
Ne8 {[%emt 0:00:07]} 30. Ne4 {[%emt 0:00:06]} Ke7 {[%emt 0:00:45]} 31. Ke3 {
[%emt 0:06:28]} f5 {[%emt 0:01:12]} 32. Nc3 {[%emt 0:00:37]} Nd6 {[%emt 0:00:
19]} 33. Kd3 {[%emt 0:00:01]} Nf7 {[%emt 0:01:57]} 34. f4 {[%emt 0:00:58]} Kd7
{[%emt 0:00:01]} 35. Rb1 {[%emt 0:00:23]} Re8 {[%emt 0:00:07]} 36. a5 {[%emt 0:
00:04]} Nd6 {[%emt 0:00:11]} 37. axb6 {[%emt 0:00:07]} axb6 {[%emt 0:00:01]}
38. Rxb6 {[%emt 0:00:19]} Re3+ {[%emt 0:00:08]} 39. Kc2 {[%emt 0:00:09]} Rg3 {
[%emt 0:00:06]} 40. Na4 {[%emt 0:00:43]} Rxg2+ {[%emt 0:00:17]} 41. Kb3 {
[%emt 0:00:01]} Rg3+ {[%emt 0:00:10]} 42. Kc2 {[%emt 0:00:08]} Nxc4 {[%emt 0:
00:29]} 43. Nxc5+ {[%emt 0:00:02]} Kd8 {[%emt 0:00:23]} 44. Rb7 {[%emt 0:00:53]
} Kc8 {[%emt 0:00:15]} 45. Rg7 {[%emt 0:00:37]} Ne3+ {[%emt 0:00:03]} 46. Kd2 {
[%emt 0:00:08]} Nxd5 {[%emt 0:00:03]} 47. Ne6 {[%emt 0:00:10]} Rg4 {[%emt 0:00:
23]} 48. Rg8+ {[%emt 0:00:14]} Kb7 {[%emt 0:00:07]} 49. Rg7+ {[%emt 0:00:18]}
Kc6 {[%emt 0:00:06]} 50. Rg8 {[%emt 0:00:09]} Kd6 {[%emt 0:00:03]} 51. Ng7 {
[%emt 0:00:35]} Nxf4 {[%emt 0:00:23]} 52. Ne8+ {[%emt 0:00:15]} Ke7 {[%emt 0:
00:17]} 53. Nc7 {[%emt 0:00:06]} Rxh4 {[%emt 0:00:18]} 54. Ke3 {[%emt 0:00:05]}
Rg4 {[%emt 0:00:05]} 55. Rh8 {[%emt 0:00:05]} h4 {[%emt 0:00:07]} 56. Kf3 {
[%emt 0:00:05]} Ne6 {[%emt 0:00:17]} 57. Rh7+ {[%emt 0:00:28]} Kd6 {[%emt 0:00:
02]} 58. Ne8+ {[%emt 0:00:02]} Ke5 {[%emt 0:00:03]} 59. Re7 {[%emt 0:00:16]} h3
{[%emt 0:00:22]} 60. Ra7 {[%emt 0:00:23]} Nd4+ {[%emt 0:00:05]} 61. Kf2 {
[%emt 0:00:06]} h2 {[%emt 0:00:06]} 62. Rh7 {[%emt 0:00:12]} Re4 {[%emt 0:00:
20]} 63. Kg2 {[%emt 0:00:13]} Re2+ {[%emt 0:00:03]} 64. Kh1 {[%emt 0:00:04]}
Ne6 {[%emt 0:00:19]} 65. Rf7 {[%emt 0:00:15]} g5 {[%emt 0:00:10]} 66. Nf6 {
[%emt 0:00:02]} g4 {[%emt 0:00:09]} 67. Nh5 {[%emt 0:00:03]} f4 {[%emt 0:00:11]
} 68. Re7 {[%emt 0:00:04]} Re1+ {[%emt 0:00:14]} 69. Kxh2 {[%emt 0:00:02]} Kf5
{[%emt 0:00:06]} 70. Re8 {[%emt 0:00:08]} g3+ {[%emt 0:00:09]} 71. Nxg3+ {
[%emt 0:00:02]} fxg3+ {[%emt 0:00:08]} 72. Kxg3 {[%emt 0:00:01]} Re3+ {[%emt 0:
00:06]} 73. Kf2 {[%emt 0:00:11]} Ra3 {[%emt 0:00:12]} 74. Re7 {[%emt 0:00:16]}
Ng5 {[%emt 0:00:02]} 75. Re8 {[%emt 0:00:06]} Kf4 {[%emt 0:00:10]} 76. Rf8+ {
[%emt 0:00:04]} Kg4 {[%emt 0:00:01]} 77. Rg8 {[%emt 0:00:03]} Rb3 {[%emt 0:00:
11]} 78. Rg7 {[%emt 0:00:09]} Kf4 {[%emt 0:00:01]} 79. Ke2 {[%emt 0:00:09]} Nf3
{[%emt 0:00:21]} 80. Re7 {[%emt 0:00:18]} Rb2+ {[%emt 0:00:04]} 81. Kd3 {
[%emt 0:00:08]} Ne5+ {[%emt 0:00:01]} 82. Kc3 {[%emt 0:00:06]} Rb8 {[%emt 0:00:
02]} 83. Rh7 {[%emt 0:00:07]} Rc8+ {[%emt 0:00:04]} 84. Kd4 {[%emt 0:00:09]}
Rd8+ {[%emt 0:00:06]} 85. Kc3 {[%emt 0:00:02]} Ke3 {[%emt 0:00:02]} 86. Re7 {
[%emt 0:00:08]} Rc8+ {[%emt 0:00:01]} 87. Kb3 {[%emt 0:00:08]} Rc5 {[%emt 0:00:
13]} 88. Re8 {[%emt 0:00:09]} Kd2 {[%emt 0:00:12]} 89. Rh8 {[%emt 0:00:45]} Nf3
{[%emt 0:00:21]} 90. Kb4 {[%emt 0:00:06]} Rc7 {[%emt 0:00:05]} 91. Rd8+ {
[%emt 0:00:03]} Kc2 {[%emt 0:00:02]} 92. Rf8 {[%emt 0:00:08]} Nd4 {[%emt 0:00:
06]} 93. Rh8 {[%emt 0:00:07]} Kb2 {[%emt 0:00:21]} 94. Rh2+ {[%emt 0:00:10]}
Nc2+ {[%emt 0:00:01]} 95. Kb5 {[%emt 0:00:04]} Rc3 {[%emt 0:00:05]} 96. Rg2 {
[%emt 0:00:08]} Kb3 {[%emt 0:00:01]} 97. Rg4 {[%emt 0:00:09]} Na3+ {[%emt 0:00:
03]} 98. Kb6 {[%emt 0:00:06]} Nc4+ {[%emt 0:00:03]} 99. Kb5 {[%emt 0:00:06]}
Nd6+ {[%emt 0:01:13]} 100. Kb6 {[%emt 0:00:06]} Rc8 {[%emt 0:00:03]} 101. Rh4 {
[%emt 0:00:07]} Nc4+ {[%emt 0:00:05]} 102. Kb5 {[%emt 0:00:03]} Kc3 {[%emt 0:
00:42]} 103. Rg4 {[%emt 0:00:19]} Kd3 {[%emt 0:00:15]} 104. Rh4 {[%emt 0:00:04]
} Nd6+ {[%emt 0:00:01]} 105. Kb6 {[%emt 0:00:07]} Ne4 {[%emt 0:00:01]} 106. Rh1
{[%emt 0:00:08]} Kc4 {[%emt 0:00:05]} 107. Rc1+ {[%emt 0:00:09]} Nc3 {[%emt 0:
00:01]} 108. Kb7 {[%emt 0:00:05]} Rc5 {[%emt 0:00:09]} 109. Rh1 {[%emt 0:00:14]
} Kb5 {[%emt 0:00:04]} 110. Rh2 {[%emt 0:00:09]} Nd5 {[%emt 0:00:31]} 111. Rb2+
{[%emt 0:00:04]} Nb4 {[%emt 0:00:00]} 112. Rb1 {[%emt 0:00:09]} Rc3 {[%emt 0:
00:38]} 113. Rh1 {[%emt 0:00:10]} Kc5 {[%emt 0:00:11]} 114. Ra1 {[%emt 0:00:24]
} Nd5 {[%emt 0:00:10]} 115. Ra5+ {[%emt 0:00:10]} Kd6 {[%emt 0:00:01]} 116.
Ra6+ {[%emt 0:00:12]} Kd7 {[%emt 0:00:02]} 117. Rh6 {[%emt 0:00:05]} Rb3+ {
[%emt 0:00:07]} 118. Ka6 {[%emt 0:00:03]} Ne7 {[%emt 0:00:28]} 119. Ka5 {
[%emt 0:00:09]} Nc6+ {[%emt 0:00:06]} 120. Ka4 {[%emt 0:00:02]} Rb1 {[%emt 0:
00:07]} 121. Rh7+ {[%emt 0:00:03]} Kd6 {[%emt 0:00:01]} 122. Rh6+ {[%emt 0:00:
02]} Kc5 {[%emt 0:00:03]} 123. Rh5+ 1/2-1/2

[Event "European Rapid Championship 2021"]
[Site "Katowice"]
[Date "2021.12.18"]
[Round "6.28"]
[White "Kozak, Antoni"]
[Black "Malicka, Maria"]
[Result "1-0"]
[ECO "A48"]
[WhiteElo "2356"]
[BlackElo "1947"]
[Annotator "NA"]
[PlyCount "53"]
[EventDate "2021.12.18"]
[EventType "swiss"]
[EventCountry "POL"]
[SourceTitle "playchess.com"]
[Source "ChessBase"]
[SourceQuality "1"]
[TimeControl "900+10"]

1. d4 {[%emt 0:00:02]} Nf6 {[%emt 0:00:01]} 2. Nf3 {[%emt 0:00:02]} g6 {
[%emt 0:00:01]} 3. c4 {[%emt 0:00:01]} d5 {[%emt 0:00:02]} 4. cxd5 {[%emt 0:00:
10]} Nxd5 {[%emt 0:00:02]} 5. e4 {[%emt 0:00:03]} Nb6 {[%emt 0:00:05]} 6. h3 {
[%emt 0:00:10]} Bg7 {[%emt 0:00:03]} 7. Bb5+ {[%emt 0:00:10]} N8d7 {[%emt 0:00:
57]} 8. Nc3 {[%emt 0:00:33]} O-O {[%emt 0:00:04]} 9. Bg5 {[%emt 0:00:11]} c6 {
[%emt 0:02:01]} 10. Be2 {[%emt 0:00:06]} Re8 {[%emt 0:00:02]} 11. O-O {[%emt 0:
00:11]} Qc7 {[%emt 0:00:28]} 12. Rc1 {[%emt 0:00:20]} e5 {[%emt 0:02:09]} 13.
d5 {[%emt 0:00:13]} f6 {[%emt 0:01:01]} 14. Be3 {[%emt 0:00:09]} Bf8 {[%emt 0:
00:52]} 15. b4 {[%emt 0:01:35]} Qd6 {[%emt 0:00:58]} 16. dxc6 {[%emt 0:00:52]}
bxc6 {[%emt 0:00:02]} 17. b5 {[%emt 0:00:46]} Bb7 {[%emt 0:00:51]} 18. a4 {
[%emt 0:00:30]} Qa3 {[%emt 0:03:59]} 19. Nb1 {[%emt 0:00:51]} Qb4 {[%emt 0:01:
06]} 20. bxc6 {[%emt 0:01:21]} Bxc6 {[%emt 0:00:06]} 21. Rxc6 {[%emt 0:00:02]}
Qxe4 {[%emt 0:00:04]} 22. Rc7 {[%emt 0:00:26]} Rad8 {[%emt 0:01:31]} 23. Qb3+ {
[%emt 0:00:30]} Kg7 {[%emt 0:00:14]} 24. Bb5 {[%emt 0:00:28]} Re7 {[%emt 0:01:
12]} 25. Nc3 {[%emt 0:00:49]} Qf5 {[%emt 0:00:33]} 26. a5 {[%emt 0:00:05]} Na8
{[%emt 0:00:09]} 27. Rxa7 {[%emt 0:00:05]} 1-0

[Event "European Rapid Championship 2021"]
[Site "Katowice"]
[Date "2021.12.18"]
[Round "6.28"]
[White "Jedrusik, Adam"]
[Black "Helis, Tadeusz"]
[Result "1/2-1/2"]
[ECO "A45"]
[WhiteElo "1769"]
[BlackElo "2155"]
[Annotator "NA"]
[PlyCount "94"]
[EventDate "2021.12.18"]
[EventType "swiss"]
[EventCountry "POL"]
[SourceTitle "playchess.com"]
[Source "ChessBase"]
[SourceQuality "1"]
[TimeControl "900+10"]

1. d4 {[%emt 0:00:01]} Nf6 {[%emt 0:00:02]} 2. Bg5 {[%emt 0:00:04]} Ne4 {
[%emt 0:00:01]} 3. Bf4 {[%emt 0:00:01]} d5 {[%emt 0:00:02]} 4. e3 {[%emt 0:00:
02]} Bf5 {[%emt 0:00:04]} 5. Nd2 {[%emt 0:00:14]} e6 {[%emt 0:00:05]} 6. Ngf3 {
[%emt 0:00:10]} c6 {[%emt 0:00:07]} 7. Nxe4 {[%emt 0:00:36]} Bxe4 {[%emt 0:00:
03]} 8. Bd3 {[%emt 0:00:03]} Bxd3 {[%emt 0:00:04]} 9. Qxd3 {[%emt 0:00:02]} Nd7
{[%emt 0:00:14]} 10. O-O {[%emt 0:00:07]} Be7 {[%emt 0:00:02]} 11. c4 dxc4 {
[%emt 0:00:11]} 12. Qxc4 {[%emt 0:01:31]} O-O {[%emt 0:00:03]} 13. Rfd1 {
[%emt 0:00:22]} h6 {[%emt 0:00:12]} 14. a3 {[%emt 0:00:27]} Nf6 {[%emt 0:00:06]
} 15. b4 {[%emt 0:00:18]} a6 {[%emt 0:00:02]} 16. Rab1 {[%emt 0:00:38]} Qd5 {
[%emt 0:00:04]} 17. Qc2 {[%emt 0:00:31]} Qe4 {[%emt 0:00:09]} 18. Rdc1 {
[%emt 0:01:01]} Rfd8 {[%emt 0:00:13]} 19. Ne5 {[%emt 0:00:12]} Bd6 {[%emt 0:01:
21]} 20. Qxe4 {[%emt 0:00:58]} Nxe4 {[%emt 0:00:04]} 21. Nd3 {[%emt 0:00:05]}
Kf8 {[%emt 0:02:01]} 22. Bxd6+ {[%emt 0:02:46]} Nxd6 {[%emt 0:00:02]} 23. Rc5 {
[%emt 0:00:07]} Ke7 {[%emt 0:00:12]} 24. f3 {[%emt 0:00:10]} f6 {[%emt 0:00:18]
} 25. Kf2 {[%emt 0:00:37]} Nb5 {[%emt 0:00:08]} 26. a4 {[%emt 0:00:35]} Nd6 {
[%emt 0:00:16]} 27. Nb2 {[%emt 0:00:39]} a5 {[%emt 0:00:52]} 28. bxa5 {[%emt 0:
00:14]} Ra7 {[%emt 0:00:17]} 29. e4 Rda8 {[%emt 0:00:16]} 30. Nc4 {[%emt 0:01:
40]} Nxc4 {[%emt 0:00:03]} 31. Rxc4 {[%emt 0:00:01]} Kd7 {[%emt 0:00:05]} 32.
Rb6 {[%emt 0:00:21]} Kc7 {[%emt 0:00:07]} 33. Rcb4 {[%emt 0:00:01]} Rb8 {
[%emt 0:00:09]} 34. a6 {[%emt 0:00:40]} Rxa6 {[%emt 0:00:02]} 35. Rxa6 {
[%emt 0:00:02]} bxa6 {[%emt 0:00:01]} 36. Rxb8 {[%emt 0:00:02]} Kxb8 {[%emt 0:
00:02]} 37. Ke3 {[%emt 0:00:04]} Kc7 {[%emt 0:00:08]} 38. a5 Kd6 {[%emt 0:00:
08]} 39. Kd3 {[%emt 0:00:03]} c5 {[%emt 0:00:01]} 40. Kc4 {[%emt 0:00:02]} cxd4
{[%emt 0:00:02]} 41. Kxd4 {[%emt 0:00:01]} e5+ {[%emt 0:00:35]} 42. Kc4 {
[%emt 0:00:01]} h5 {[%emt 0:00:11]} 43. g3 {[%emt 0:00:22]} g6 {[%emt 0:00:02]}
44. Kb4 {[%emt 0:00:14]} f5 {[%emt 0:00:37]} 45. Kc4 {[%emt 0:00:22]} Kc6 {
[%emt 0:02:30]} 46. h3 {[%emt 0:00:21]} Kd6 {[%emt 0:00:30]} 47. Kb4 {[%emt 0:
00:04]} Kc6 1/2-1/2

[Event "European Rapid Championship 2021"]
[Site "Katowice"]
[Date "2021.12.18"]
[Round "6.29"]
[White "Kosakowski, Jakub"]
[Black "Krawczyk, Wojciech"]
[Result "1-0"]
[ECO "B12"]
[WhiteElo "2438"]
[BlackElo "1868"]
[Annotator "NA"]
[PlyCount "79"]
[EventDate "2021.12.18"]
[EventType "swiss"]
[EventCountry "POL"]
[SourceTitle "playchess.com"]
[Source "ChessBase"]
[SourceQuality "1"]
[TimeControl "900+10"]

1. e4 {[%emt 0:00:02]} c6 {[%emt 0:00:03]} 2. d4 {[%emt 0:00:08]} d5 {[%emt 0:
00:02]} 3. e5 {[%emt 0:00:03]} c5 {[%emt 0:00:06]} 4. dxc5 {[%emt 0:00:03]} Nc6
{[%emt 0:00:02]} 5. f4 {[%emt 0:00:03]} e6 {[%emt 0:00:25]} 6. Be3 {[%emt 0:00:
02]} d4 {[%emt 0:00:13]} 7. Bf2 {[%emt 0:00:02]} Bxc5 {[%emt 0:00:02]} 8. Nd2 {
[%emt 0:00:03]} Nge7 {[%emt 0:00:10]} 9. Ngf3 {[%emt 0:01:45]} Nd5 {[%emt 0:01:
45]} 10. g3 {[%emt 0:00:12]} Qa5 {[%emt 0:01:30]} 11. Bd3 {[%emt 0:02:10]} Ne3
{[%emt 0:00:37]} 12. Qc1 {[%emt 0:00:05]} Nb4 {[%emt 0:00:27]} 13. Ke2 {
[%emt 0:00:13]} Nbd5 {[%emt 0:03:18]} 14. Nb3 {[%emt 0:00:55]} Qb6 {[%emt 0:01:
00]} 15. Nxc5 {[%emt 0:00:07]} Qxc5 {[%emt 0:00:02]} 16. c3 {[%emt 0:00:05]}
Qb6 {[%emt 0:00:47]} 17. Nxd4 {[%emt 0:00:37]} Ng4 {[%emt 0:00:12]} 18. Bg1 {
[%emt 0:00:06]} Qc7 {[%emt 0:00:17]} 19. h3 {[%emt 0:00:18]} Nh6 {[%emt 0:00:
02]} 20. Nb5 {[%emt 0:00:06]} Qc6 {[%emt 0:00:23]} 21. Nd6+ {[%emt 0:00:04]}
Kf8 {[%emt 0:00:03]} 22. Bd4 {[%emt 0:00:43]} a6 {[%emt 0:01:09]} 23. Be4 {
[%emt 0:00:27]} b5 {[%emt 0:00:39]} 24. a4 {[%emt 0:00:27]} Bb7 {[%emt 0:00:31]
} 25. Kf2 {[%emt 0:01:33]} f5 {[%emt 0:00:47]} 26. Bf3 {[%emt 0:00:37]} Nf7 {
[%emt 0:02:25]} 27. axb5 {[%emt 0:00:50]} axb5 {[%emt 0:00:07]} 28. Nxb7 {
[%emt 0:00:15]} Qxb7 {[%emt 0:00:06]} 29. Rxa8+ {[%emt 0:00:27]} Qxa8 {[%emt 0:
00:01]} 30. c4 {[%emt 0:00:06]} bxc4 {[%emt 0:00:15]} 31. Qxc4 {[%emt 0:00:03]}
Ke7 {[%emt 0:01:01]} 32. Bc5+ {[%emt 0:01:13]} Kd7 {[%emt 0:00:07]} 33. Rd1 {
[%emt 0:00:03]} Rb8 {[%emt 0:00:30]} 34. b4 {[%emt 0:00:25]} Qa4 {[%emt 0:01:
31]} 35. Rxd5+ {[%emt 0:00:24]} exd5 {[%emt 0:00:07]} 36. Qxd5+ {[%emt 0:00:01]
} Ke8 {[%emt 0:00:02]} 37. Qe6+ {[%emt 0:00:04]} Kd8 {[%emt 0:00:01]} 38. Be7+
{[%emt 0:01:16]} Kc7 {[%emt 0:00:15]} 39. Qxf7 {[%emt 0:00:22]} Qa2+ {[%emt 0:
00:29]} 40. Qxa2 {[%emt 0:00:03]} 1-0

[Event "European Rapid Championship 2021"]
[Site "Katowice"]
[Date "2021.12.18"]
[Round "6.29"]
[White "Lach, Mateusz"]
[Black "Ortega Ruiz, Jose Miguel"]
[Result "0-1"]
[ECO "A56"]
[WhiteElo "1661"]
[BlackElo "2150"]
[Annotator "NA"]
[PlyCount "54"]
[EventDate "2021.12.18"]
[EventType "swiss"]
[EventCountry "POL"]
[SourceTitle "playchess.com"]
[Source "ChessBase"]
[SourceQuality "1"]
[TimeControl "900+10"]

1. d4 {[%emt 0:00:02]} Nf6 {[%emt 0:00:01]} 2. c4 {[%emt 0:00:01]} c5 {[%emt 0:
00:02]} 3. e3 {[%emt 0:00:02]} cxd4 {[%emt 0:00:20]} 4. exd4 {[%emt 0:00:01]}
d5 {[%emt 0:00:01]} 5. Nf3 {[%emt 0:00:04]} Nc6 {[%emt 0:00:00]} 6. Nc3 {
[%emt 0:00:13]} Bg4 {[%emt 0:00:08]} 7. Be3 {[%emt 0:01:24]} e6 {[%emt 0:00:17]
} 8. a3 {[%emt 0:00:15]} dxc4 {[%emt 0:02:11]} 9. Bxc4 {[%emt 0:00:12]} Bd6 {
[%emt 0:00:01]} 10. Bb5 {[%emt 0:01:05]} O-O {[%emt 0:00:07]} 11. Bxc6 {
[%emt 0:01:00]} bxc6 {[%emt 0:00:01]} 12. Bg5 {[%emt 0:00:35]} Be7 {[%emt 0:00:
26]} 13. Be3 {[%emt 0:01:28]} Qb6 {[%emt 0:00:48]} 14. b4 {[%emt 0:00:39]} a5 {
[%emt 0:00:03]} 15. d5 {[%emt 0:01:32]} Qc7 {[%emt 0:00:49]} 16. dxe6 {[%emt 0:
00:15]} Bxe6 {[%emt 0:01:08]} 17. Bc5 {[%emt 0:00:14]} Bxc5 {[%emt 0:01:19]}
18. bxc5 {[%emt 0:00:03]} Bc4 {[%emt 0:00:01]} 19. Nd4 {[%emt 0:02:29]} Rfe8+ {
[%emt 0:00:35]} 20. Kd2 {[%emt 0:01:57]} Rad8 {[%emt 0:00:41]} 21. Kc2 {
[%emt 0:00:12]} Qe5 {[%emt 0:00:58]} 22. Re1 {[%emt 0:02:52]} Qxd4 {[%emt 0:00:
27]} 23. Rxe8+ {[%emt 0:00:08]} Nxe8 {[%emt 0:00:01]} 24. Qxd4 {[%emt 0:00:11]}
Rxd4 {[%emt 0:00:01]} 25. Re1 {[%emt 0:00:42]} Kf8 {[%emt 0:00:01]} 26. a4 {
[%emt 0:00:41]} Nc7 {[%emt 0:00:11]} 27. Re4 {[%emt 0:00:18]} Bd3+ {[%emt 0:00:
01]} 0-1

[Event "European Rapid Championship 2021"]
[Site "Katowice"]
[Date "2021.12.18"]
[Round "6.30"]
[White "Bauer, Thomas"]
[Black "Warchol, Kamil"]
[Result "0-1"]
[ECO "B40"]
[WhiteElo "2143"]
[BlackElo "1976"]
[Annotator "ChessBase"]
[PlyCount "96"]
[EventDate "2021.12.18"]
[EventType "swiss"]
[EventCountry "POL"]
[SourceTitle "playchess.com"]
[Source "ChessBase"]
[SourceQuality "1"]
[TimeControl "900+10"]

1. e4 {[%emt 0:00:02]} c5 {[%emt 0:00:02]} 2. Nf3 {[%emt 0:00:01]} e6 {[%emt 0:
00:01]} 3. g3 {[%emt 0:00:01]} Nc6 {[%emt 0:00:07]} 4. Bg2 {[%emt 0:00:01]} e5
{[%emt 0:00:07]} 5. Na3 {[%emt 0:00:02]} d6 {[%emt 0:00:07]} 6. Nc4 {[%emt 0:
00:03]} Nf6 {[%emt 0:00:11]} 7. d3 {[%emt 0:00:16]} h6 {[%emt 0:00:03]} 8. O-O
{[%emt 0:00:13]} Be7 {[%emt 0:00:11]} 9. a4 {[%emt 0:00:03]} O-O {[%emt 0:00:
06]} 10. a5 {[%emt 0:00:18]} Be6 {[%emt 0:00:40]} 11. Nfd2 {[%emt 0:00:57]} d5
{[%emt 0:01:23]} 12. exd5 {[%emt 0:00:10]} Nxd5 {[%emt 0:01:03]} 13. Re1 {
[%emt 0:00:25]} Qc7 {[%emt 0:00:11]} 14. Nf3 {[%emt 0:02:14]} Bf6 {[%emt 0:00:
36]} 15. Bd2 {[%emt 0:00:46]} Rfe8 {[%emt 0:00:45]} 16. a6 {[%emt 0:01:32]} b6
{[%emt 0:00:25]} 17. Qc1 {[%emt 0:00:38]} Rad8 {[%emt 0:00:55]} 18. h3 {
[%emt 0:00:03]} Nd4 {[%emt 0:03:03]} 19. Kh2 {[%emt 0:01:33]} Nc6 {[%emt 0:00:
40]} 20. Re4 {[%emt 0:02:00]} Bf5 {[%emt 0:00:15]} 21. Re1 {[%emt 0:00:20]} e4
{[%emt 0:01:00]} 22. dxe4 {[%emt 0:00:12]} Bxe4 {[%emt 0:00:03]} 23. c3 {
[%emt 0:00:43]} b5 {[%emt 0:01:07]} 24. Ne3 {[%emt 0:00:14]} Nxe3 {[%emt 0:00:
33]} 25. Bxe3 {[%emt 0:00:09]} Bxf3 {[%emt 0:00:24]} 26. Bxf3 {[%emt 0:00:39]}
Ne5 {[%emt 0:00:01]} 27. Be2 {[%emt 0:00:50]} Qc6 {[%emt 0:00:16]} 28. b4 {
[%emt 0:01:19]} c4 {[%emt 0:01:27]} 29. Bxa7 {[%emt 0:01:26]} Ra8 {[%emt 0:00:
03]} 30. Bd4 {[%emt 0:01:10]} Rxa6 {[%emt 0:00:13]} 31. Rxa6 Qxa6 {[%emt 0:00:
01]} 32. Qf4 {[%emt 0:01:42]} Qc6 {[%emt 0:00:37]} 33. Rd1 {[%emt 0:00:18]} Bg5
{[%emt 0:01:30]} 34. Qf5 {[%emt 0:00:08]} g6 {[%emt 0:00:10]} 35. Qc2 {[%emt 0:
00:12]} Nf3+ {[%emt 0:00:07]} 36. Bxf3 {[%emt 0:00:05]} Qxf3 {[%emt 0:00:01]}
37. Rf1 {[%emt 0:00:24]} Re2 {[%emt 0:01:29]} 38. Qd1 {[%emt 0:00:01]} Qd3 {
[%emt 0:00:34]} 39. Qa1 {[%emt 0:00:16]} Re8 {[%emt 0:00:08]} 40. Re1 {[%emt 0:
00:07]} Rf8 {[%emt 0:00:24]} 41. h4 {[%emt 0:00:03]} Bd2 {[%emt 0:00:11]} 42.
Rg1 {[%emt 0:00:22]} Rd8 {[%emt 0:00:17]} 43. Rd1 {[%emt 0:00:02]} Qe2 {
[%emt 0:00:23]} 44. Be3 {[%emt 0:00:07]} Kh7 {[%emt 0:00:02]} 45. Bb6 {[%emt 0:
00:13]} Bxc3 {[%emt 0:00:16]} 46. Qxc3 {[%emt 0:00:18]} Rxd1 {[%emt 0:00:06]}
47. Be3 {[%emt 0:00:10]} Qf3 {[%emt 0:00:09]} 48. Bxh6 {[%emt 0:00:10]} Rh1# {
[%emt 0:00:03]} 0-1